[Event "CZE-ch U14 Girls 2020"]
[Site "Kouty nad Desnou"]
[Date "2020.03.11"]
[Round "6.15"]
[White "Vankova, Marie"]
[Black "Zelbova, Lada"]
[Result "1/2-1/2"]
[ECO "B80"]
[WhiteElo "1367"]
[BlackElo "1646"]
[Annotator "NA RC"]
[PlyCount "96"]
[EventDate "2020.03.07"]
[EventCountry "CZE"]
[SourceTitle "playchess.com"]
[Source "ChessBase"]
[SourceQuality "1"]
[TimeControl "5400+30"]

1. e4 {[%emt 0:00:00]} c5 {[%emt 0:00:00]} 2. Nf3 {[%emt 0:00:00]} d6 {[%emt 0:00:00]} 3. d4 {[%emt 0:00:02]} cxd4 {[%emt 0:00:00]} 4. Nxd4 {[%emt 0:00:07]} Nf6 {[%emt 0:00:00]} 5. Nc3 {[%emt 0:00:13]} e6 {[%emt 0:00:00]} 6. Bg5 {[%emt 0:02:58]} Be7 {[%emt 0:00:18]} 7. Ndb5 {[%emt 0:17:37]} O-O {[%emt 0:15:18]} 8. Bxf6 {[%emt 0:18:27]} Bxf6 {[%emt 0:00:13]} 9. Nxd6 {[%emt 0:01:41]} Bxc3+ {[%emt 0:02:38]} 10. bxc3 {[%emt 0:00:08]} Nc6 {[%emt 0:03:23]} 11. Bc4 {[%emt 0:04:25]} Qc7 {[%emt 0:11:45]} 12. Nb5 {[%emt 0:01:52]} Qe5 {[%emt 0:05:39]} 13. Qd3 {[%emt 0:07:18]} Rd8 {[%emt 0:05:54]} 14. Qe3 {[%emt 0:00:22]} a6 {[%emt 0:03:29]} 15. Na3 {[%emt 0:01:11]} Qd6 {[%emt 0:04:36]} 16. Bxa6 {[%emt 0:07:12]} Qxa3 {[%emt 0:07:28]} 17. Bc4 {[%emt 0:02:34]} Na5 {[%emt 0:05:44]} 18. Be2 {[%emt 0:06:21]} e5 {[%emt 0:00:56]} 19. O-O {[%emt 0:00:38]} Be6 {[%emt 0:00:35]} 20. Qb6 {[%emt 0:03:46]} Qd6 {[%emt 0:05:02]} 21. Qb2 {[%emt 0:02:14]} Qc5 {[%emt 0:03:41]} 22. Rfd1 {[%emt 0:02:13]} Rdc8 {[%emt 0:01:19]} 23. h3 {[%emt 0:06:08]} Qxc3 {[%emt 0:02:13]} 24. Rd8+ {[%emt 0:00:31]} Rxd8 {[%emt 0:00:41]} 25. Qxc3 {[%emt 0:00:08]} Nc6 {[%emt 0:05:07]} 26. a3 {[%emt 0:01:24]} Rd4 {[%emt 0:03:21]} 27. f3 {[%emt 0:00:52]} h6 {[%emt 0:05:30]} 28. Kh2 {[%emt 0:02:41]} Ra5 {[%emt 0:01:31]} 29. Rb1 {[%emt 0:00:58]} Rda4 {[%emt 0:00:35]} 30. Rxb7 {[%emt 0:02:14]} Nd4 {[%emt 0:00:22]} 31. Bf1 {[%emt 0:01:12]} Rxa3 {[%emt 0:00:25]} 32. Qd2 {[%emt 0:01:14]} Rc5 {[%emt 0:02:31]} 33. Rb8+ {[%emt 0:00:25]} Kh7 {[%emt 0:00:08]} 34. Bd3 {[%emt 0:01:28]} Ra2 {[%emt 0:02:12]} 35. Qb4 {[%emt 0:02:05]} Rca5 {[%emt 0:01:23]} 36. Qe1 {[%emt 0:01:59]} R5a3 {[%emt 0:00:49]} 37. Kg3 {[%emt 0:01:06]} Nxc2 {[%emt 0:02:33]} 38. Bxc2 {[%emt 0:00:34]} Rxc2 {[%emt 0:00:07]} 39. Rb5 {[%emt 0:01:54]} Raa2 {[%emt 0:01:14]} 40. Qg1 {[%emt 0:00:25]} Rxg2+ {[%emt 0:00:34]} 41. Qxg2 {[%emt 0:00:12]} Rxg2+ {[%emt 0:00:07]} 42. Kxg2 {[%emt 0:00:07]} f6 {[%emt 0:00:00]} 43. Rb6 {[%emt 0:00:00]} Bc4 {[%emt 0:00:00]} 44. Kg3 {[%emt 0:00:00]} Bf1 {[%emt 0:00:00]} 45. h4 {[%emt 0:00:00]} h5 {[%emt 0:00:00]} 46. f4 {[%emt 0:00:00]} exf4+ {[%emt 0:00:00]} 47. Kxf4 {[%emt 0:00:00]} Bd3 {[%emt 0:00:00]} 48. e5 {[%emt 0:00:00]} fxe5+ {[%emt 0:00:00]} 1/2-1/2

[Event "CZE-ch U14 Girls 2020"]
[Site "Kouty nad Desnou"]
[Date "2020.03.11"]
[Round "6.16"]
[White "Pejrimovska, Viola Ruby"]
[Black "Glasbergerova, Lucie"]
[Result "1-0"]
[ECO "B01"]
[WhiteElo "1600"]
[BlackElo "1203"]
[Annotator "NA"]
[PlyCount "47"]
[EventDate "2020.03.07"]
[EventCountry "CZE"]
[SourceTitle "playchess.com"]
[Source "ChessBase"]
[SourceQuality "1"]
[TimeControl "5400+30"]

1. e4 {[%emt 0:00:00]} d5 {[%emt 0:00:00]} 2. exd5 {[%emt 0:00:00]} Qxd5 {[%emt 0:00:00]} 3. Nf3 {[%emt 0:00:00]} Bg4 {[%emt 0:00:26]} 4. Be2 {[%emt 0:00:34]} Nf6 {[%emt 0:00:38]} 5. Nc3 {[%emt 0:00:17]} Qa5 {[%emt 0:00:21]} 6. O-O {[%emt 0:00:57]} Nbd7 {[%emt 0:01:03]} 7. d4 {[%emt 0:00:52]} e6 {[%emt 0:01:29]} 8. a3 {[%emt 0:03:11]} Bd6 {[%emt 0:01:51]} 9. h3 {[%emt 0:01:11]} Bf5 {[%emt 0:02:38]} 10. Be3 {[%emt 0:01:03]} c6 {[%emt 0:06:35]} 11. b4 {[%emt 0:01:35]} Qc7 {[%emt 0:00:37]} 12. Qd2 {[%emt 0:01:57]} h6 {[%emt 0:01:47]} 13. Kh1 {[%emt 0:05:19]} O-O-O {[%emt 0:01:31]} 14. Rfb1 {[%emt 0:01:59]} Rdg8 {[%emt 0:01:04]} 15. a4 {[%emt 0:02:31]} g5 {[%emt 0:02:04]} 16. b5 {[%emt 0:00:57]} g4 {[%emt 0:08:39]} 17. bxc6 {[%emt 0:02:20]} Qxc6 {[%emt 0:00:38]} 18. Nb5 {[%emt 0:11:02]} Bb8 {[%emt 0:06:02]} 19. Rb4 {[%emt 0:22:22]} Qb6 {[%emt 0:08:47]} 20. d5 {[%emt 0:02:51]} Qd8 {[%emt 0:00:32]} 21. Rc4+ {[%emt 0:02:50]} Bc7 {[%emt 0:01:28]} 22. Qa5 {[%emt 0:06:26]} a6 {[%emt 0:03:56]} 23. Nxc7 {[%emt 0:06:14]} Nb8 {[%emt 0:04:11]} 24. Nxe6+ {[%emt 0:02:11]} 1-0

[Event "CZE-ch U14 Girls 2020"]
[Site "Kouty nad Desnou"]
[Date "2020.03.11"]
[Round "6.17"]
[White "Jirotova, Eliska"]
[Black "Sulcova, Tereza Radmila"]
[Result "1/2-1/2"]
[ECO "A08"]
[WhiteElo "1333"]
[BlackElo "1555"]
[Annotator "NA RC"]
[PlyCount "98"]
[EventDate "2020.03.07"]
[EventCountry "CZE"]
[SourceTitle "playchess.com"]
[Source "ChessBase"]
[SourceQuality "1"]
[TimeControl "5400+30"]

1. e4 {[%emt 0:00:00]} e6 {[%emt 0:00:00]} 2. d3 {[%emt 0:00:00]} d5 {[%emt 0:00:22]} 3. Nd2 {[%emt 0:00:00]} c5 {[%emt 0:00:57]} 4. g3 {[%emt 0:00:32]} Bd6 {[%emt 0:01:42]} 5. Bg2 {[%emt 0:01:00]} Ne7 {[%emt 0:00:42]} 6. Ngf3 {[%emt 0:00:46]} Nbc6 {[%emt 0:00:34]} 7. O-O {[%emt 0:01:10]} O-O {[%emt 0:01:17]} 8. Re1 {[%emt 0:01:11]} Qc7 {[%emt 0:01:20]} 9. c3 {[%emt 0:03:56]} d4 {[%emt 0:04:58]} 10. Nc4 {[%emt 0:14:21]} e5 {[%emt 0:05:02]} 11. a4 {[%emt 0:08:37]} b6 {[%emt 0:04:03]} 12. Qe2 {[%emt 0:07:38]} f6 {[%emt 0:11:14]} 13. h3 {[%emt 0:15:54]} Be6 {[%emt 0:03:19]} 14. Qc2 {[%emt 0:06:46]} a6 {[%emt 0:02:50]} 15. Na3 {[%emt 0:08:03]} b5 {[%emt 0:01:51]} 16. axb5 {[%emt 0:01:45]} axb5 {[%emt 0:00:38]} 17. Nxb5 {[%emt 0:02:22]} Qd7 {[%emt 0:00:27]} 18. Rxa8 {[%emt 0:01:01]} Rxa8 {[%emt 0:00:09]} 19. Kh2 {[%emt 0:00:51]} Nb4 {[%emt 0:02:53]} 20. cxb4 {[%emt 0:03:05]} Qxb5 {[%emt 0:00:10]} 21. bxc5 {[%emt 0:00:40]} Bxc5 {[%emt 0:00:12]} 22. Nd2 {[%emt 0:01:16]} Rc8 {[%emt 0:00:53]} 23. Bf1 {[%emt 0:06:01]} Bb6 {[%emt 0:05:49]} 24. Nc4 {[%emt 0:03:20]} Ba5 {[%emt 0:11:58]} 25. Bd2 {[%emt 0:02:44]} Bd8 {[%emt 0:02:23]} 26. Ra1 {[%emt 0:02:42]} f5 {[%emt 0:02:15]} 27. exf5 {[%emt 0:04:15]} Nxf5 {[%emt 0:01:43]} 28. Qb1 {[%emt 0:01:59]} Qd5 {[%emt 0:04:50]} 29. Bg2 {[%emt 0:00:45]} Qc5 {[%emt 0:01:09]} 30. b4 {[%emt 0:00:24]} Qc7 {[%emt 0:00:22]} 31. Bf1 {[%emt 0:01:03]} Ne7 {[%emt 0:03:38]} 32. Qe1 {[%emt 0:00:38]} Ng6 {[%emt 0:00:48]} 33. Qb1 {[%emt 0:00:56]} e4 {[%emt 0:06:31]} 34. Na3 {[%emt 0:00:43]} exd3 {[%emt 0:01:56]} 35. Bxd3 {[%emt 0:00:31]} Qf7 {[%emt 0:01:00]} 36. Qe1 {[%emt 0:00:30]} Bc7 {[%emt 0:01:36]} 37. Nb5 {[%emt 0:00:31]} Nh4 {[%emt 0:01:14]} 38. Be2 {[%emt 0:00:11]} Ng6 {[%emt 0:12:04]} 39. Nxd4 {[%emt 0:00:35]} Be5 {[%emt 0:00:27]} 40. Be3 {[%emt 0:00:14]} Ne7 {[%emt 0:03:29]} 41. Rd1 {[%emt 0:00:41]} Rb8 {[%emt 0:00:37]} 42. Nxe6 {[%emt 0:00:21]} Qxe6 {[%emt 0:00:07]} 43. Rb1 {[%emt 0:00:57]} Nc6 {[%emt 0:01:29]} 44. Qc1 {[%emt 0:00:00]} Kh8 {[%emt 0:00:00]} 45. b5 {[%emt 0:00:00]} Nd4 {[%emt 0:00:00]} 46. Bxd4 {[%emt 0:00:00]} Bxd4 {[%emt 0:00:00]} 47. Qf1 {[%emt 0:00:00]} Qb6 {[%emt 0:00:00]} 48. Kg2 {[%emt 0:00:00]} Rf8 {[%emt 0:00:00]} 49. f3 {[%emt 0:00:00]} Be3 {[%emt 0:00:00]} 1/2-1/2

[Event "CZE-ch U14 Girls 2020"]
[Site "Kouty nad Desnou"]
[Date "2020.03.11"]
[Round "6.18"]
[White "Markova, Karolina"]
[Black "Vavrinkova, Marie"]
[Result "1-0"]
[ECO "C30"]
[WhiteElo "1497"]
[BlackElo "1240"]
[Annotator "NA"]
[PlyCount "79"]
[EventDate "2020.03.07"]
[EventCountry "CZE"]
[SourceTitle "playchess.com"]
[Source "ChessBase"]
[SourceQuality "1"]
[TimeControl "5400+30"]

1. e4 {[%emt 0:00:00]} e5 {[%emt 0:00:00]} 2. f4 {[%emt 0:00:00]} Bc5 {[%emt 0:00:23]} 3. Nf3 {[%emt 0:00:08]} d6 {[%emt 0:01:28]} 4. Nc3 {[%emt 0:00:13]} Nf6 {[%emt 0:01:13]} 5. Bc4 {[%emt 0:00:37]} Nc6 {[%emt 0:00:43]} 6. d3 {[%emt 0:00:27]} Bg4 {[%emt 0:00:53]} 7. h3 {[%emt 0:00:28]} Be6 {[%emt 0:03:50]} 8. Bb3 {[%emt 0:00:35]} a6 {[%emt 0:04:09]} 9. f5 {[%emt 0:01:20]} Bxb3 {[%emt 0:04:53]} 10. axb3 {[%emt 0:00:32]} h6 {[%emt 0:00:39]} 11. g4 {[%emt 0:08:36]} Nh7 {[%emt 0:09:55]} 12. h4 {[%emt 0:02:40]} Qd7 {[%emt 0:07:25]} 13. g5 {[%emt 0:06:15]} h5 {[%emt 0:00:59]} 14. Nd5 {[%emt 0:00:55]} Ne7 {[%emt 0:02:42]} 15. b4 {[%emt 0:11:03]} Ba7 {[%emt 0:08:03]} 16. Nxe7 {[%emt 0:00:18]} Qxe7 {[%emt 0:01:38]} 17. b5 {[%emt 0:01:32]} a5 {[%emt 0:03:25]} 18. Bd2 {[%emt 0:02:37]} Bb6 {[%emt 0:02:27]} 19. b4 {[%emt 0:04:24]} a4 {[%emt 0:03:02]} 20. c4 {[%emt 0:01:02]} a3 {[%emt 0:04:18]} 21. Qb3 {[%emt 0:01:02]} g6 {[%emt 0:02:56]} 22. f6 {[%emt 0:00:48]} Qe6 {[%emt 0:04:45]} 23. Nh2 {[%emt 0:07:50]} Qh3 {[%emt 0:01:29]} 24. Kd1 {[%emt 0:03:04]} Bf2 {[%emt 0:02:23]} 25. Kc2 {[%emt 0:01:32]} O-O {[%emt 0:02:41]} 26. Qa2 {[%emt 0:15:00]} Bxh4 {[%emt 0:03:14]} 27. Rag1 {[%emt 0:04:55]} Bf2 {[%emt 0:01:29]} 28. Ng4 {[%emt 0:03:46]} Qf3 {[%emt 0:01:30]} 29. Nxf2 {[%emt 0:05:55]} Qxf2 {[%emt 0:00:43]} 30. Kb3 {[%emt 0:05:04]} Qd4 {[%emt 0:01:58]} 31. Qc2 {[%emt 0:03:04]} a2 {[%emt 0:01:07]} 32. Ra1 {[%emt 0:00:30]} h4 {[%emt 0:02:13]} 33. Bc3 {[%emt 0:04:35]} Qe3 {[%emt 0:01:00]} 34. Rxh4 {[%emt 0:00:38]} Qxg5 {[%emt 0:00:57]} 35. Qh2 {[%emt 0:00:52]} Nxf6 {[%emt 0:00:39]} 36. Bd2 {[%emt 0:01:50]} Qxh4 {[%emt 0:01:43]} 37. Qxh4 {[%emt 0:00:19]} Nh5 {[%emt 0:00:51]} 38. Rxa2 {[%emt 0:00:20]} Rxa2 {[%emt 0:00:14]} 39. Kxa2 {[%emt 0:00:02]} Kg7 {[%emt 0:00:10]} 40. Qe7 {[%emt 0:02:21]} 1-0

[Event "CZE-ch U14 Girls 2020"]
[Site "Kouty nad Desnou"]
[Date "2020.03.11"]
[Round "6.19"]
[White "Smajzrova, Dominika"]
[Black "Ticha, Sofie"]
[Result "0-1"]
[ECO "B23"]
[WhiteElo "1487"]
[BlackElo "1216"]
[Annotator "NA"]
[PlyCount "66"]
[EventDate "2020.03.07"]
[EventCountry "CZE"]
[SourceTitle "playchess.com"]
[Source "ChessBase"]
[SourceQuality "1"]
[TimeControl "5400+30"]

1. e4 {[%emt 0:00:00]} c5 {[%emt 0:00:00]} 2. Nc3 {[%emt 0:00:00]} e6 {[%emt 0:00:00]} 3. g3 {[%emt 0:00:24]} d5 {[%emt 0:00:22]} 4. Bg2 {[%emt 0:02:38]} d4 {[%emt 0:01:27]} 5. Nce2 {[%emt 0:01:31]} Nc6 {[%emt 0:00:21]} 6. d3 {[%emt 0:03:52]} e5 {[%emt 0:01:28]} 7. f4 {[%emt 0:03:28]} Bd6 {[%emt 0:00:25]} 8. Nf3 {[%emt 0:00:47]} Nf6 {[%emt 0:01:36]} 9. O-O {[%emt 0:02:42]} Be6 {[%emt 0:09:48]} 10. f5 {[%emt 0:05:09]} Bd7 {[%emt 0:00:18]} 11. h3 {[%emt 0:00:50]} g6 {[%emt 0:01:15]} 12. g4 {[%emt 0:04:06]} gxf5 {[%emt 0:01:21]} 13. exf5 {[%emt 0:01:10]} Rg8 {[%emt 0:00:41]} 14. Bg5 {[%emt 0:06:52]} Be7 {[%emt 0:04:08]} 15. Bxf6 {[%emt 0:04:10]} Bxf6 {[%emt 0:00:12]} 16. Ng3 {[%emt 0:00:32]} Qc7 {[%emt 0:01:04]} 17. Ne4 {[%emt 0:01:41]} Bg7 {[%emt 0:01:55]} 18. Nxc5 {[%emt 0:06:52]} Nb4 {[%emt 0:07:34]} 19. Nxd7 {[%emt 0:03:37]} Qxd7 {[%emt 0:00:12]} 20. Re1 {[%emt 0:00:57]} f6 {[%emt 0:06:51]} 21. Qd2 {[%emt 0:01:59]} Nc6 {[%emt 0:01:25]} 22. c3 {[%emt 0:06:41]} O-O-O {[%emt 0:03:42]} 23. Rac1 {[%emt 0:02:31]} Kb8 {[%emt 0:00:37]} 24. Qc2 {[%emt 0:05:18]} Bh6 {[%emt 0:01:09]} 25. Rb1 {[%emt 0:00:26]} Rc8 {[%emt 0:01:01]} 26. b4 {[%emt 0:04:42]} dxc3 {[%emt 0:03:11]} 27. Qxc3 {[%emt 0:03:11]} Nd4 {[%emt 0:00:16]} 28. Qb2 {[%emt 0:03:46]} Rc2 {[%emt 0:01:06]} 29. Qa3 {[%emt 0:02:38]} Nxf3+ {[%emt 0:01:49]} 30. Bxf3 {[%emt 0:00:32]} Qd4+ {[%emt 0:00:08]} 31. Kh1 {[%emt 0:01:48]} Qf2 {[%emt 0:00:17]} 32. Re2 {[%emt 0:03:07]} Qxf3+ {[%emt 0:00:15]} 33. Kg1 {[%emt 0:05:19]} Be3+ {[%emt 0:00:20]} 0-1

[Event "CZE-ch U14 Girls 2020"]
[Site "Kouty nad Desnou"]
[Date "2020.03.11"]
[Round "6.20"]
[White "Stavova, Helena"]
[Black "Havelkova, Beata"]
[Result "0-1"]
[ECO "B72"]
[WhiteElo "1146"]
[BlackElo "1468"]
[Annotator "NA"]
[PlyCount "86"]
[EventDate "2020.03.07"]
[EventCountry "CZE"]
[SourceTitle "playchess.com"]
[Source "ChessBase"]
[SourceQuality "1"]
[TimeControl "5400+30"]

1. e4 {[%emt 0:00:00]} c5 {[%emt 0:00:00]} 2. Nf3 {[%emt 0:00:00]} d6 {[%emt 0:00:00]} 3. d4 {[%emt 0:00:11]} cxd4 {[%emt 0:00:00]} 4. Nxd4 {[%emt 0:00:19]} Nf6 {[%emt 0:00:00]} 5. Nc3 {[%emt 0:00:55]} g6 {[%emt 0:00:08]} 6. Be3 {[%emt 0:00:58]} Bg7 {[%emt 0:00:07]} 7. Bc4 {[%emt 0:01:09]} O-O {[%emt 0:00:49]} 8. h3 {[%emt 0:00:46]} Nc6 {[%emt 0:00:42]} 9. O-O {[%emt 0:01:24]} Bd7 {[%emt 0:02:03]} 10. Bb3 {[%emt 0:02:35]} a6 {[%emt 0:07:29]} 11. f4 {[%emt 0:03:14]} Qb6 {[%emt 0:12:33]} 12. Qd2 {[%emt 0:03:47]} Nxe4 {[%emt 0:07:38]} 13. Nxe4 {[%emt 0:01:20]} Bxd4 {[%emt 0:00:38]} 14. Rae1 {[%emt 0:03:07]} Bf5 {[%emt 0:05:18]} 15. c3 {[%emt 0:03:37]} Bxe3+ {[%emt 0:01:43]} 16. Qxe3 {[%emt 0:00:28]} Qxe3+ {[%emt 0:01:02]} 17. Rxe3 {[%emt 0:00:25]} Rad8 {[%emt 0:03:42]} 18. Ng3 {[%emt 0:02:59]} Bc8 {[%emt 0:00:44]} 19. f5 {[%emt 0:02:09]} gxf5 {[%emt 0:04:34]} 20. Nxf5 {[%emt 0:00:40]} Bxf5 {[%emt 0:01:59]} 21. Rxf5 {[%emt 0:00:21]} e6 {[%emt 0:00:54]} 22. Rh5 {[%emt 0:01:37]} Ne5 {[%emt 0:03:36]} 23. Bc2 {[%emt 0:02:10]} Ng6 {[%emt 0:00:34]} 24. c4 {[%emt 0:01:41]} Rc8 {[%emt 0:01:08]} 25. b3 {[%emt 0:01:19]} Rfd8 {[%emt 0:02:22]} 26. Bxg6 {[%emt 0:02:27]} hxg6 {[%emt 0:00:39]} 27. Rh4 {[%emt 0:00:20]} Kg7 {[%emt 0:02:41]} 28. Rf4 {[%emt 0:02:44]} d5 {[%emt 0:03:03]} 29. cxd5 {[%emt 0:01:01]} Rxd5 {[%emt 0:00:22]} 30. Rf2 {[%emt 0:00:58]} Rcd8 {[%emt 0:03:48]} 31. Ree2 {[%emt 0:01:25]} e5 {[%emt 0:01:01]} 32. g4 {[%emt 0:01:28]} f6 {[%emt 0:01:00]} 33. Kf1 {[%emt 0:00:57]} Rd3 {[%emt 0:02:28]} 34. Kg2 {[%emt 0:01:27]} Rh8 {[%emt 0:00:28]} 35. Rf3 {[%emt 0:03:20]} Rxf3 {[%emt 0:00:24]} 36. Kxf3 {[%emt 0:00:10]} Rxh3+ {[%emt 0:00:29]} 37. Kg2 {[%emt 0:00:16]} Rd3 {[%emt 0:01:11]} 38. Kf2 {[%emt 0:01:21]} Kh6 {[%emt 0:01:03]} 39. Re4 {[%emt 0:01:13]} Rd4 {[%emt 0:02:30]} 40. Kf3 {[%emt 0:00:25]} Rxe4 {[%emt 0:00:57]} 41. Kxe4 {[%emt 0:00:14]} Kg5 {[%emt 0:00:24]} 42. Kf3 {[%emt 0:00:34]} e4+ {[%emt 0:00:36]} 43. Kxe4 {[%emt 0:00:26]} Kxg4 {[%emt 0:00:11]} 0-1

[Event "CZE-ch U14 Girls 2020"]
[Site "Kouty nad Desnou"]
[Date "2020.03.11"]
[Round "6.21"]
[White "Stribna, Julie"]
[Black "Spacilova, Klara"]
[Result "1-0"]
[ECO "C55"]
[WhiteElo "1046"]
[BlackElo "1188"]
[Annotator "NA RC"]
[PlyCount "147"]
[EventDate "2020.03.07"]
[EventCountry "CZE"]
[SourceTitle "playchess.com"]
[Source "ChessBase"]
[SourceQuality "1"]
[TimeControl "5400+30"]

1. e4 {[%emt 0:00:00]} e5 {[%emt 0:00:00]} 2. Nf3 {[%emt 0:00:00]} Nc6 {[%emt 0:00:00]} 3. Bc4 {[%emt 0:00:16]} Nf6 {[%emt 0:00:05]} 4. Nc3 {[%emt 0:00:43]} Nxe4 {[%emt 0:01:06]} 5. Nxe4 {[%emt 0:01:09]} d5 {[%emt 0:00:12]} 6. Bxd5 {[%emt 0:00:43]} Qxd5 {[%emt 0:00:13]} 7. d3 {[%emt 0:01:18]} Be7 {[%emt 0:02:35]} 8. Be3 {[%emt 0:06:33]} O-O {[%emt 0:00:21]} 9. O-O {[%emt 0:00:54]} Bg4 {[%emt 0:01:12]} 10. Re1 {[%emt 0:21:51]} f5 {[%emt 0:07:29]} 11. Nc3 {[%emt 0:03:44]} Qe6 {[%emt 0:00:21]} 12. Qc1 {[%emt 0:02:54]} Bxf3 {[%emt 0:01:51]} 13. gxf3 {[%emt 0:04:43]} Qg6+ {[%emt 0:00:39]} 14. Kh1 {[%emt 0:00:59]} f4 {[%emt 0:00:24]} 15. Bd2 {[%emt 0:01:02]} Qh5 {[%emt 0:00:36]} 16. Qd1 {[%emt 0:01:39]} Nd4 {[%emt 0:00:18]} 17. Rg1 {[%emt 0:03:22]} Qxf3+ {[%emt 0:00:24]} 18. Qxf3 {[%emt 0:00:48]} Nxf3 {[%emt 0:00:09]} 19. Rgd1 {[%emt 0:00:50]} Rf5 {[%emt 0:03:02]} 20. Ne4 {[%emt 0:04:56]} Rh5 {[%emt 0:00:32]} 21. h3 {[%emt 0:02:32]} Nxd2 {[%emt 0:02:05]} 22. Nxd2 {[%emt 0:01:45]} Rxh3+ {[%emt 0:00:17]} 23. Kg2 {[%emt 0:00:31]} Rh6 {[%emt 0:00:23]} 24. Nf3 {[%emt 0:01:16]} Rf8 {[%emt 0:04:21]} 25. Kf1 {[%emt 0:09:12]} Rh1+ {[%emt 0:00:39]} 26. Ke2 {[%emt 0:01:16]} Rxd1 {[%emt 0:00:10]} 27. Rxd1 {[%emt 0:00:06]} Bf6 {[%emt 0:00:17]} 28. c3 {[%emt 0:01:24]} Re8 {[%emt 0:00:13]} 29. Nd2 {[%emt 0:00:39]} g5 {[%emt 0:01:52]} 30. f3 {[%emt 0:02:17]} Re6 {[%emt 0:02:20]} 31. Kf2 {[%emt 0:03:44]} Rb6 {[%emt 0:00:27]} 32. b3 {[%emt 0:02:32]} Ra6 {[%emt 0:01:02]} 33. a4 {[%emt 0:03:59]} Bg7 {[%emt 0:02:50]} 34. Ne4 {[%emt 0:02:28]} Rg6 {[%emt 0:00:28]} 35. Rg1 {[%emt 0:01:20]} h6 {[%emt 0:00:16]} 36. b4 {[%emt 0:06:46]} Bf8 {[%emt 0:01:13]} 37. b5 {[%emt 0:02:16]} b6 {[%emt 0:00:16]} 38. c4 {[%emt 0:00:54]} Bc5+ {[%emt 0:00:40]} 39. Nxc5 {[%emt 0:00:59]} bxc5 {[%emt 0:00:25]} 40. Re1 {[%emt 0:04:31]} Re6 {[%emt 0:00:52]} 41. Re4 {[%emt 0:00:55]} Kf7 {[%emt 0:00:13]} 42. Re1 {[%emt 0:00:00]} Kf6 {[%emt 0:00:00]} 43. Rh1 {[%emt 0:00:00]} Kf5 {[%emt 0:00:00]} 44. Rh5 {[%emt 0:00:00]} c6 {[%emt 0:00:00]} 45. a5 {[%emt 0:00:00]} cxb5 {[%emt 0:00:00]} 46. cxb5 {[%emt 0:00:00]} Kg6 {[%emt 0:00:00]} 47. Rh1 {[%emt 0:00:00]} Rd6 {[%emt 0:00:00]} 48. Ke2 {[%emt 0:00:00]} h5 {[%emt 0:00:00]} 49. Rb1 {[%emt 0:00:00]} Rd8 {[%emt 0:00:00]} 50. Rc1 {[%emt 0:00:00]} Rc8 {[%emt 0:00:00]} 51. Rb1 {[%emt 0:00:00]} Rb8 {[%emt 0:00:00]} 52. b6 {[%emt 0:00:00]} axb6 {[%emt 0:00:00]} 53. Rxb6+ {[%emt 0:00:00]} Rxb6 {[%emt 0:00:00]} 54. axb6 {[%emt 0:00:00]} h4 {[%emt 0:00:00]} 55. b7 {[%emt 0:00:00]} c4 {[%emt 0:01:19]} 56. b8=Q {[%emt 0:00:00]} cxd3+ {[%emt 0:00:13]} 57. Kxd3 {[%emt 0:00:00]} Kf6 {[%emt 0:00:57]} 58. Qd8+ {[%emt 0:00:00]} Kg6 {[%emt 0:02:48]} 59. Qg8+ {[%emt 0:00:28]} Kf6 {[%emt 0:00:21]} 60. Ke4 {[%emt 0:01:01]} g4 {[%emt 0:04:14]} 61. Qxg4 {[%emt 0:00:20]} Ke7 {[%emt 0:00:44]} 62. Qg6 {[%emt 0:00:27]} h3 {[%emt 0:00:43]} 63. Qh7+ {[%emt 0:00:17]} Ke6 {[%emt 0:00:15]} 64. Qxh3+ {[%emt 0:00:17]} Kd6 {[%emt 0:00:12]} 65. Qf5 {[%emt 0:00:07]} Kc5 {[%emt 0:00:14]} 66. Qxe5+ {[%emt 0:00:15]} Kc4 {[%emt 0:00:08]} 67. Qd4+ {[%emt 0:00:21]} Kb5 {[%emt 0:00:11]} 68. Qc3 {[%emt 0:00:11]} Kb6 {[%emt 0:00:06]} 69. Kd5 {[%emt 0:00:18]} Kb7 {[%emt 0:00:12]} 70. Kd6 {[%emt 0:00:06]} Kb8 {[%emt 0:00:07]} 71. Kd7 {[%emt 0:00:07]} Kb7 {[%emt 0:00:04]} 72. Qb3+ {[%emt 0:00:37]} Ka6 {[%emt 0:00:05]} 73. Kc6 {[%emt 0:00:13]} Ka7 {[%emt 0:00:17]} 74. Qb7# {[%emt 0:00:07]} 1-0